fUSD/lending_fUSD_20250118
["ID","MTS","AMOUNT","RATE_DAILY","PERIOD"]
[349431402,1737175875173,-279.96,0.00020999,2]
[349431403,1737175875183,-356.24705361,0.00020999,2]
[349431404,1737175875193,-500.0,0.00020999,2]
[349431405,1737175875203,-500.0,0.00020999,2]
[349431406,1737175875213,-617.56426017,0.00020999,2]
[349431407,1737175875223,-500.0,0.00020999,2]
[349431408,1737175875233,-500.0,0.00020999,2]
[349431409,1737175875243,-500.0,0.00020999,2]
[349431410,1737175875253,-500.0,0.00020999,2]
[349431411,1737175875263,-500.0,0.00020999,2]
[349431412,1737175875272,-500.0,0.00020999,2]
[349431413,1737175875282,-500.0,0.00020999,2]
[349431414,1737175875292,-500.0,0.00020999,2]
[349431415,1737175875302,-500.0,0.00020999,2]
[349431416,1737175875312,-500.0,0.00020999,2]
[349431417,1737175875322,-578.26888397,0.00020999,2]
[349431418,1737175875332,-151.0,0.00020999,2]
[349431419,1737175875341,-151.0,0.00020999,2]
[349431420,1737175875351,-500.0,0.00020999,2]
[349431421,1737175875362,-500.0,0.00020999,2]
[349431422,1737175875372,-500.0,0.00020999,2]
[349431423,1737175875382,-500.0,0.00020999,2]
[349431424,1737175875392,-500.0,0.00020999,2]
[349431425,1737175875402,-450.92,0.00020999,2]
[349431426,1737175875412,-684.88,0.00020999,2]
[349431427,1737175875421,-684.88,0.00020999,2]
[349431428,1737175875431,-684.88,0.00020999,2]
[349431429,1737175875440,-684.88,0.00020999,2]
[349431430,1737175875450,-684.88,0.00020999,2]
[349431431,1737175875460,-684.88,0.00020999,2]
[349431432,1737175875470,-684.88,0.00020999,2]
[349431433,1737175875480,-685.027179,0.00020999,2]
[349431434,1737175875490,-500.0,0.00020999,2]
[349431435,1737175875503,-500.0,0.00020999,2]
[349431436,1737175875513,-500.0,0.00020999,2]
[349431437,1737175875523,-862.36,0.00020999,2]
[349431438,1737175875532,-500.0,0.00020999,2]
[349431439,1737175875543,-862.36,0.00020999,2]
[349431440,1737175875552,-500.0,0.00020999,2]
[349431441,1737175875562,-862.36,0.00020999,2]
[349431442,1737175875572,-500.0,0.00020999,2]
[349431443,1737175875581,-862.36,0.00020999,2]
[349431444,1737175875591,-500.0,0.00020999,2]
[349431445,1737175875601,-862.36,0.00020999,2]
[349431446,1737175875610,-500.0,0.00020999,2]
[349431447,1737175875621,-862.36,0.00020999,2]
[349431448,1737175875631,-500.0,0.00020999,2]
[349431449,1737175875641,-862.37921812,0.00020999,2]
[349431450,1737175875650,-500.0,0.00020999,2]
[349431451,1737175875660,-326.02570103,0.00020999,2]
[349431452,1737175875671,-238.47285661,0.00020999,2]
[349431453,1737175875680,-290.165608,0.00020999,2]
[349431454,1737175875690,-500.0,0.00020999,2]
[349431455,1737175875700,-401.34670418,0.00020999,2]
[349431456,1737175875710,-717.01,0.00020999,2]
[349431457,1737175875719,-717.01,0.00020999,2]
[349431458,1737175875728,-717.01,0.00020999,2]
[349431459,1737175875737,-717.01,0.00020999,2]
[349431460,1737175875748,-717.01,0.00020999,2]
[349431461,1737175875758,-717.01,0.00020999,2]
[349431462,1737175875767,-717.06256538,0.00020999,2]
[349431463,1737175875777,-628.87,0.00020999,2]
[349431464,1737175875788,-628.87,0.00020999,2]
[349431465,1737175875798,-628.87,0.00020999,2]
[349431466,1737175875808,-628.87,0.00020999,2]
[349431467,1737175875817,-628.87,0.00020999,2]
[349431468,1737175875832,-628.87,0.00020999,2]
[349431469,1737175875843,-628.87,0.00020999,2]
[349431470,1737175875854,-629.04684607,0.00020999,2]
[349431471,1737175875863,-1003.07,0.00020999,2]
[349431472,1737175875872,-1003.07,0.00020999,2]
[349431473,1737175875883,-1003.07,0.00020999,2]
[349431474,1737175875893,-1003.07,0.00020999,2]
[349431475,1737175875902,-1003.07,0.00020999,2]
[349431476,1737175875912,-1003.07,0.00020999,2]
[349431477,1737175875923,-1003.07,0.00020999,2]
[349431478,1737175875933,-1003.07,0.00020999,2]
[349431479,1737175875943,-1003.07,0.00020999,2]
[349431480,1737175875953,-1003.07,0.00020999,2]
[349431481,1737175875962,-151.0,0.00020999,2]
[349431482,1737175875971,-482.39960884,0.00020999,2]
[349431483,1737175876252,-213.96750386,0.00018394,2]
[349431484,1737175876262,-70.6078749,0.0001994,2]
[349431485,1737175876405,-500.0,0.00019178,2]
[349431486,1737175876415,-429.3921251,0.0001994,2]
[349431487,1737175876424,-500.0,0.00019998,2]
[349431488,1737175876434,-500.0,0.0002004,2]
[349431489,1737175876558,-500.0,0.00020141,2]
[349431490,1737175876570,-500.0,0.00020141,2]
[349431491,1737175876580,-151.0,0.00020142,2]
[349431492,1737175876590,-500.0,0.00020895,2]
[349431493,1737175876600,-514.85912522,0.00020895,2]
[349431494,1737175876609,-286.970491,0.00020992,2]
[349431495,1737175876619,-500.0,0.00020994,2]
[349431496,1737175876628,-500.0,0.00020996,2]
[349431497,1737175876637,-500.0,0.00020996,2]
[349431498,1737175876646,-500.0,0.00020997,2]
[349431499,1737175876656,-500.0,0.00020997,2]
[349431500,1737175876665,-500.0,0.00020997,2]
[349431501,1737175876674,-137.79946658,0.00020998,2]
[349431502,1737175876726,-286.51568,0.00020998,2]
[349431503,1737175876739,-75.68485342,0.00020998,2]
[349431504,1737175876753,-520.67039116,0.00020999,2]
[349431505,1737175876763,-1003.07,0.00020999,2]
[349431506,1737175876774,-151.0,0.00020999,2]
[349431507,1737175876785,-1003.07,0.00020999,2]
[349431508,1737175876795,-151.0,0.00020999,2]
[349431509,1737175876805,-481.30907617,0.00020999,2]
[349431510,1737175876822,-500.0,0.00020998,2]
[349431511,1737175876834,-521.76092383,0.00020999,2]
[349431512,1737175876844,-916.23907617,0.00020999,2]
[349431513,1737175877046,-456.61194201,0.00019178,2]
[349431514,1737175877071,-16.53035903,0.00019178,2]
[349431515,1737175877083,-30.61865418,0.00019178,2]
[349431516,1737175877094,-375.94135382,0.00019178,2]
[349431517,1737175877115,-213.96750386,0.00018672,2]
[349431518,1737175877126,-124.05864618,0.00019178,2]
[349431519,1737175877136,-500.0,0.00019998,2]
[349431520,1737175877146,-500.0,0.00020039,2]
[349431521,1737175877157,-588.18,0.00020141,2]
[349431522,1737175877167,-500.0,0.00020142,2]
[349431523,1737175877176,-500.0,0.00020994,2]
[349431524,1737175877185,-500.0,0.00020996,2]
[349431525,1737175877195,-500.0,0.00020997,2]
[349431526,1737175877204,-500.0,0.00020998,2]
[349431527,1737175877213,-500.0,0.00020998,2]
[349431528,1737175877222,-500.0,0.00020998,2]
[349431529,1737175877232,-500.0,0.00020998,2]
[349431530,1737175877241,-576.57,0.00020998,2]
[349431531,1737175877251,-86.99287002,0.00020999,2]
[349431532,1737175877262,-151.0,0.00020999,2]
[349431533,1737175877272,-1637.7,0.00020999,2]
[349431534,1737175877290,-1637.7,0.00020999,2]
[349431535,1737175877303,-284.225492,0.00020999,2]
[349431536,1737175877314,-1637.7,0.00020999,2]
[349431537,1737175877324,-524.14832835,0.00020999,2]
[349431538,1737175877335,-1637.7,0.00020999,2]
[349431539,1737175877346,-1637.7,0.00020999,2]
[349431540,1737175877358,-1637.7,0.00020999,2]
[349431541,1737175877369,-547.9,0.00020999,2]
[349431542,1737175877380,-1637.70589407,0.00020999,2]
[349431543,1737175877390,-547.9,0.00020999,2]
[349431544,1737175877401,-547.9,0.00020999,2]
[349431545,1737175877412,-547.9,0.00020999,2]
[349431546,1737175877422,-547.9,0.00020999,2]
[349431547,1737175877431,-547.9,0.00020999,2]
[349431548,1737175877441,-547.9853707,0.00020999,2]
[349431549,1737175877451,-1664.67,0.00020999,2]
[349431550,1737175877461,-1664.67,0.00020999,2]
[349431551,1737175877471,-1664.67,0.00020999,2]
[349431552,1737175877480,-1664.67,0.00020999,2]
[349431553,1737175877491,-1664.67,0.00020999,2]
[349431554,1737175877503,-1664.67,0.00020999,2]
[349431555,1737175877512,-1664.67,0.00020999,2]
[349431556,1737175877522,-1664.67,0.00020999,2]
[349431557,1737175877531,-1664.67,0.00020999,2]
[349431558,1737175877544,-1664.67,0.00020999,2]
[349431559,1737175877553,-1664.67,0.00020999,2]
[349431560,1737175877562,-1664.67,0.00020999,2]
[349431561,1737175877572,-500.0,0.00020999,2]
[349431562,1737175877582,-1664.67,0.00020999,2]
[349431563,1737175877591,-500.0,0.00020999,2]
[349431564,1737175877601,-1664.67,0.00020999,2]
[349431565,1737175877611,-1664.78198131,0.00020999,2]
[349431566,1737175877621,-500.0,0.00020999,2]
[349431567,1737175877631,-433.88522993,0.00020999,2]
[349431568,1737175877641,-183.282203,0.00020999,2]
[349431569,1737175877651,-613.2,0.00020999,2]
[349431570,1737175877661,-613.2,0.00020999,2]
[349431571,1737175877671,-613.2,0.00020999,2]
[349431572,1737175877681,-613.2,0.00020999,2]
[349431573,1737175877690,-613.2,0.00020999,2]
[349431574,1737175877700,-613.2,0.00020999,2]
[349431575,1737175877710,-613.36189869,0.00020999,2]
[349431576,1737175877720,-1679.01,0.00020999,2]
[349431577,1737175877730,-1679.01,0.00020999,2]
[349431578,1737175877740,-1679.01,0.00020999,2]
[349431579,1737175877750,-1679.01,0.00020999,2]
[349431580,1737175877760,-1679.01,0.00020999,2]
[349431581,1737175877769,-615.6,0.00020999,2]
[349431582,1737175877779,-1546.1841206,0.00020999,2]
[349431583,1737175877795,-132.8258794,0.00020999,2]
[349431584,1737175877805,-615.6,0.00020999,2]
[349431585,1737175877814,-1679.01,0.00020999,2]
[349431586,1737175877823,-615.6,0.00020999,2]
[349431587,1737175877833,-1679.01,0.00020999,2]
[349431588,1737175877843,-615.6,0.00020999,2]
[349431589,1737175877852,-1679.01,0.00020999,2]
[349431590,1737175877862,-615.6,0.00020999,2]
[349431591,1737175877872,-1679.01,0.00020999,2]
[349431592,1737175877882,-615.6,0.00020999,2]
[349431593,1737175877891,-1679.01,0.00020999,2]
[349431594,1737175877901,-615.66,0.00020999,2]
[349431595,1737175877911,-1679.01,0.00020999,2]
[349431596,1737175877920,-1679.01,0.00020999,2]
[349431597,1737175877930,-1679.01,0.00020999,2]
[349431598,1737175877940,-1679.01135649,0.00020999,2]
[349431599,1737175877949,-1646.82,0.00020999,2]
[349431600,1737175877958,-1646.82,0.00020999,2]
[349431601,1737175877968,-1646.82,0.00020999,2]
[349431602,1737175877977,-1646.82,0.00020999,2]
[349431603,1737175877987,-1646.82,0.00020999,2]
[349431604,1737175877997,-1646.82,0.00020999,2]
[349431605,1737175878007,-1646.82,0.00020999,2]
[349431606,1737175878017,-1646.82,0.00020999,2]
[349431607,1737175878027,-1646.82,0.00020999,2]
[349431608,1737175878037,-1646.82,0.00020999,2]
[349431609,1737175878047,-1646.82,0.00020999,2]
[349431610,1737175878057,-1646.82,0.00020999,2]
[349431611,1737175878066,-1646.82,0.00020999,2]
[349431612,1737175878076,-1646.82,0.00020999,2]
[349431613,1737175878086,-1646.83545267,0.00020999,2]
[349431614,1737175878096,-1078.33,0.00020999,2]
[349431615,1737175878108,-1078.33,0.00020999,2]
[349431616,1737175878118,-1078.33,0.00020999,2]
[349431617,1737175878128,-1078.33,0.00020999,2]
[349431618,1737175878138,-1078.33,0.00020999,2]
[349431619,1737175878148,-988.78836704,0.00020999,2]
[349431620,1737175878508,-500.0,0.00019178,2]
[349431621,1737175878518,-348.06680961,0.00019178,2]
[349431622,1737175878535,-151.93319039,0.00019178,2]
[349431623,1737175878548,-500.0,0.00019178,2]
[349431624,1737175878557,-500.0,0.00019178,2]
[349431625,1737175878567,-500.0,0.0001994,2]
[349431626,1737175878577,-500.0,0.00019997,2]
[349431627,1737175878586,-500.0,0.00020039,2]
[349431628,1737175878596,-268.5,0.0002004,2]
[349431629,1737175878606,-500.0,0.00020141,2]
[349431630,1737175878616,-1105.0,0.00020751,2]
[349431631,1737175878625,-500.0,0.00020992,2]
[349431632,1737175878635,-500.0,0.00020996,2]
[349431633,1737175878645,-89.54163296,0.00020999,2]
[349431634,1737175878655,-1078.33,0.00020999,2]
[349431635,1737175878664,-1078.33,0.00020999,2]
[349431636,1737175878674,-1078.33,0.00020999,2]
[349431637,1737175878684,-1078.33,0.00020999,2]
[349431638,1737175878694,-414.69672045,0.00020999,2]
[349431639,1737175878719,-500.0,0.00019178,2]
[349431640,1737175878728,-500.0,0.0002004,2]
[349431641,1737175878738,-500.0,0.00020997,2]
[349431642,1737175878747,-663.63327955,0.00020999,2]
[349431643,1737175878757,-92.95591574,0.00020999,2]
[349431646,1737175993151,2000.0,0.0002308,120]
[349431649,1737176593753,2000.0,0.00023088,120]
[349431650,1737176708577,10689.06981906,0.00023,120]
[349431651,1737176708609,111117.93018094,0.00023,120]
[349431652,1737176825138,-238.7,0.00010137,2]
[349431653,1737176825159,-500.0,0.00012,2]
[349431654,1737176825180,-500.0,0.00013,2]
[349431655,1737176825202,-238.7,0.00016813,2]
[349431656,1737176825222,-552.82672612,0.00017412,2]
[349431657,1737176833100,-336.24327388,0.00017412,2]
[349431658,1737176833122,-250.0,0.00018696,2]
[349431659,1737176833142,-250.0,0.00018788,2]
[349431660,1737176833163,-300.0,0.00018829,2]
[349431661,1737176833184,-525.70015058,0.0001883,2]
[349431662,1737176854138,-809.17760814,0.0001883,2]
[349431666,1737176952128,-500.0,0.0001324,2]
[349431684,1737177031857,-559.52615515,0.0001873,2]
[349431685,1737177031869,-744.93784711,0.0001873,2]
[349431686,1737177031878,-2056.44427289,0.0001883,2]
[349431687,1737177031891,-4916.25,0.0001883,2]
[349431688,1737177031967,-1681.2,0.0001883,2]
[349431689,1737177032025,-1600.17737716,0.0001883,2]
[349431690,1737177032037,-860.38504265,0.0001883,2]
[349431691,1737177032083,-969.33680901,0.0001883,2]
[349431692,1737177032142,-4341.88540636,0.0001883,2]
[349431906,1737177039901,-3108.69860694,0.0001883,2]
[349431908,1737177039913,-1036.378622,0.0001883,2]
[349432064,1737177042865,-1994.36610427,0.0001883,2]
[349432065,1737177042875,-8020.77,0.0001889,2]
[349432066,1737177042884,-152.32,0.00018956,2]
[349432067,1737177042894,-6875.7147,0.00019078,2]
[349432068,1737177042903,-505.53820306,0.00019178,7]
[349432069,1737177042912,-500.0,0.00019178,2]
[349432070,1737177042921,-521.98396507,0.00019178,2]
[349432071,1737177042932,-500.0,0.00019178,2]
[349432072,1737177042941,-500.0,0.00019178,2]
[349432073,1737177042950,-503.59189893,0.00019178,2]
[349432074,1737177042959,-500.0,0.00019178,2]
[349432075,1737177042968,-500.0,0.00019178,2]
[349432076,1737177042977,-500.0,0.00019178,2]
[349432077,1737177042986,-500.0,0.00019178,2]
[349432078,1737177042995,-500.0,0.00019178,2]
[349432079,1737177043005,-500.0,0.00019178,2]
[349432080,1737177043014,-500.0,0.00019178,2]
[349432081,1737177043023,-500.0,0.00019178,2]
[349432082,1737177043032,-500.0,0.00019178,2]
[349432083,1737177043043,-500.0,0.00019178,2]
[349432084,1737177043053,-500.0,0.00019178,2]
[349432085,1737177043063,-500.0,0.00019178,2]
[349432086,1737177043072,-500.0,0.00019178,2]
[349432087,1737177043081,-500.0,0.00019178,2]
[349432088,1737177043090,-237.67296574,0.00019178,2]
[349432089,1737177043099,-509.58649187,0.00019178,2]
[349432090,1737177043108,-500.0,0.00019178,2]
[349432091,1737177043117,-525.49365948,0.00019178,2]
[349432092,1737177043127,-500.0,0.00019178,2]
[349432094,1737177043136,-423.52830628,0.00019178,2]
[349432095,1737177043145,-500.0,0.00019178,2]
[349432097,1737177043154,-508.89429796,0.00019178,2]
[349432099,1737177043163,-500.0,0.00019178,2]
[349432101,1737177043172,-503.83832464,0.00019178,2]
[349432103,1737177043182,-500.0,0.00019178,2]
[349432105,1737177043191,-520.67902154,0.00019178,2]
[349432106,1737177043199,-500.0,0.00019178,2]
[349432107,1737177043208,-500.0,0.00019178,2]
[349432108,1737177043218,-692.59,0.00019178,2]
[349432109,1737177043227,-500.0,0.00019178,2]
[349432110,1737177043236,-500.0,0.00019178,2]
[349432111,1737177043245,-500.0,0.00019178,2]
[349432113,1737177043254,-500.0,0.00019178,2]
[349432115,1737177043263,-500.0,0.00019178,2]
[349432117,1737177043272,-500.0,0.00019178,2]
[349432119,1737177043281,-500.0,0.00019178,2]
[349432121,1737177043290,-506.85927119,0.00019178,2]
[349432123,1737177043303,-190.61054596,0.00019178,2]
[349432125,1737177043313,-336.83266149,0.00019178,2]
[349432126,1737177043322,-500.0,0.00019178,2]
[349432127,1737177043331,-500.0,0.00019178,2]
[349432128,1737177043340,-500.0,0.00019178,2]
[349432129,1737177043349,-503.89599277,0.00019178,2]
[349432130,1737177043358,-392.90973589,0.00019178,2]
[349432131,1737177043562,-500.0,0.00019178,2]
[349432132,1737177043573,-500.0,0.00019178,2]
[349432133,1737177043581,-500.0,0.00019178,2]
[349432134,1737177043591,-598.11,0.00019178,2]
[349432135,1737177043600,-500.0,0.00019178,2]
[349432136,1737177043609,-430.94085714,0.00019178,2]
[349432137,1737177043618,-500.0,0.00019178,2]
[349432138,1737177043627,-500.0,0.00019178,2]
[349432139,1737177043636,-870.83,0.00019178,2]
[349432140,1737177043646,-500.0,0.00019178,2]
[349432141,1737177043655,-500.0,0.00019178,2]
[349432142,1737177043664,-500.0,0.00019178,2]
[349432143,1737177043673,-500.0,0.00019178,2]
[349432144,1737177043682,-500.0,0.00019178,2]
[349432145,1737177043691,-500.0,0.00019178,2]
[349432146,1737177043700,-500.0,0.00019178,2]
[349432147,1737177043709,-500.0,0.00019178,2]
[349432148,1737177043718,-500.0,0.00019178,2]
[349432149,1737177043727,-500.0,0.00019178,2]
[349432150,1737177043736,-500.0,0.00019178,2]
[349432151,1737177043746,-500.0,0.00019178,2]
[349432152,1737177043755,-500.0,0.00019178,2]
[349432153,1737177043765,-500.0,0.00019178,2]
[349432154,1737177043774,-500.0,0.00019178,2]
[349432155,1737177043784,-500.0,0.00019178,2]
[349432156,1737177043794,-500.0,0.00019178,2]
[349432157,1737177043806,-195.18104356,0.00019178,2]
[349432158,1737177043815,-500.0,0.00019178,2]
[349432159,1737177043824,-500.0,0.00019178,2]
[349432160,1737177043833,-500.0,0.00019178,2]
[349432161,1737177043846,-500.0,0.00019178,2]
[349432162,1737177043855,-500.0,0.00019178,2]
[349432163,1737177043864,-500.0,0.00019178,2]
[349432164,1737177043873,-500.0,0.00019178,2]
[349432165,1737177043883,-500.0,0.00019178,2]
[349432166,1737177043893,-500.0,0.00019178,2]
[349432167,1737177043902,-500.0,0.00019178,2]
[349432168,1737177043911,-500.0,0.00019178,2]
[349432169,1737177043922,-500.0,0.00019178,2]
[349432170,1737177043931,-573.95169205,0.00019178,2]
[349432171,1737177043940,-500.0,0.00019178,2]
[349432172,1737177043949,-500.0,0.00019178,2]
[349432173,1737177043959,-500.0,0.00019178,2]
[349432174,1737177043968,-500.0,0.00019178,2]
[349432175,1737177043977,-500.0,0.00019178,2]
[349432176,1737177043986,-500.0,0.00019178,2]
[349432177,1737177043995,-500.0,0.00019178,2]
[349432178,1737177044005,-500.0,0.00019178,2]
[349432179,1737177044014,-500.0,0.00019178,2]
[349432180,1737177044024,-510.82307445,0.00019178,2]
[349432181,1737177044033,-505.71404962,0.00019178,2]
[349432182,1737177044042,-500.0,0.00019178,2]
[349432183,1737177044053,-500.0,0.00019178,2]
[349432184,1737177044062,-500.0,0.00019178,2]
[349432185,1737177044071,-500.0,0.00019178,2]
[349432186,1737177044080,-500.0,0.00019178,2]
[349432187,1737177044089,-500.0,0.00019178,2]
[349432188,1737177044098,-511.58551769,0.00019178,2]
[349432189,1737177044107,-500.0,0.00019178,2]
[349432190,1737177044116,-500.0,0.00019178,2]
[349432191,1737177044125,-500.0,0.00019178,2]
[349432192,1737177044135,-500.0,0.00019178,2]
[349432193,1737177044143,-500.0,0.00019178,2]
[349432194,1737177044153,-500.0,0.00019178,2]
[349432195,1737177044162,-500.0,0.00019178,2]
[349432196,1737177044171,-500.0,0.00019178,2]
[349432197,1737177044180,-573.22,0.00019178,2]
[349432198,1737177044189,-500.0,0.00019178,2]
[349432199,1737177044198,-500.0,0.00019178,2]
[349432200,1737177044207,-500.0,0.00019178,2]
[349432201,1737177044216,-634.99948018,0.00019178,2]
[349432202,1737177044226,-500.0,0.00019178,2]
[349432203,1737177044235,-500.0,0.00019178,2]
[349432204,1737177044244,-500.0,0.00019178,2]
[349432205,1737177044253,-500.0,0.00019178,2]
[349432206,1737177044262,-500.0,0.00019178,2]
[349432207,1737177044271,-500.0,0.00019178,2]
[349432208,1737177044281,-522.84547182,0.00019178,2]
[349432209,1737177044290,-500.0,0.00019178,2]
[349432210,1737177044299,-500.0,0.00019178,2]
[349432211,1737177044310,-500.0,0.00019178,2]
[349432212,1737177044319,-500.0,0.00019178,2]
[349432213,1737177044328,-509.86074742,0.00019178,2]
[349432214,1737177044338,-500.0,0.00019178,2]
[349432215,1737177044348,-762.51,0.00019178,2]
[349432216,1737177044357,-500.0,0.00019178,2]
[349432217,1737177044366,-500.0,0.00019178,2]
[349432218,1737177044375,-500.0,0.00019178,2]
[349432219,1737177044385,-500.0,0.00019178,2]
[349432220,1737177044394,-991.44,0.00019178,2]
[349432221,1737177044403,-500.0,0.00019178,2]
[349432222,1737177044412,-500.0,0.00019178,2]
[349432223,1737177044421,-500.0,0.00019178,2]
[349432224,1737177044431,-500.0,0.00019178,2]
[349432225,1737177044440,-618.22,0.00019178,2]
[349432226,1737177044448,-500.0,0.00019178,2]
[349432227,1737177044457,-500.0,0.00019178,2]
[349432228,1737177044467,-500.0,0.00019178,2]
[349432229,1737177044476,-500.0,0.00019178,2]
[349432230,1737177044485,-500.0,0.00019178,2]
[349432231,1737177044494,-500.0,0.00019178,2]
[349432232,1737177044503,-500.0,0.00019178,2]
[349432233,1737177044513,-500.0,0.00019178,2]
[349432234,1737177044522,-500.0,0.00019178,2]
[349432235,1737177044531,-500.0,0.00019178,2]
[349432236,1737177044540,-500.0,0.00019178,2]
[349432237,1737177044550,-619.68,0.00019178,2]
[349432238,1737177044559,-1259.82,0.00019178,2]
[349432239,1737177044569,-670.53,0.00019178,2]
[349432240,1737177044578,-1170.243,0.00019224,2]
[349432241,1737177044588,-163.83,0.00019429,2]
[349432242,1737177044597,-1000.0,0.00019465,2]
[349432243,1737177044607,-184.46,0.00019497,2]
[349432244,1737177044616,-510.14,0.00019507,2]
[349432245,1737177044626,-500.0,0.00019568,2]
[349432246,1737177044636,-1000.0,0.00019568,2]
[349432247,1737177044645,-500.0,0.00019568,2]
[349432248,1737177044655,-960.0,0.00019635,2]
[349432249,1737177044664,-889.07,0.00019676,2]
[349432250,1737177044674,-150.0,0.00019726,2]
[349432251,1737177044683,-171.17400316,0.00019838,2]
[349432252,1737177044692,-2500.0,0.00019838,2]
[349432253,1737177044702,-608.4299,0.00019838,2]
[349432254,1737177044712,-5000.0,0.00019839,2]
[349432255,1737177044721,-851.47,0.00019938,2]
[349432256,1737177044732,-500.0,0.00019938,2]
[349432257,1737177044742,-500.0,0.00019938,2]
[349432258,1737177044751,-500.0,0.00019938,2]
[349432259,1737177044761,-500.0,0.00019938,2]
[349432260,1737177044771,-781.49,0.00019938,2]
[349432261,1737177044781,-500.0,0.00019938,2]
[349432262,1737177044791,-500.0,0.00019938,2]
[349432263,1737177044802,-2718.27,0.00019938,2]
[349432264,1737177044812,-2733.65,0.00019938,2]
[349432265,1737177044822,-2419.17,0.00019938,2]
[349432266,1737177044832,-1706.35,0.00019938,2]
[349432267,1737177044841,-790.3,0.00019938,2]
[349432268,1737177044855,-1494.67,0.00019938,2]
[349432269,1737177044864,-500.0,0.00019938,2]
[349432270,1737177044874,-500.0,0.00019938,2]
[349432271,1737177044883,-500.0,0.00019938,2]
[349432272,1737177044894,-500.0,0.00019938,2]
[349432273,1737177044903,-805.6,0.00019938,2]
[349432274,1737177044913,-1199.18,0.00019938,2]
[349432275,1737177044922,-997.41,0.00019938,2]
[349432276,1737177044933,-629.03,0.00019938,2]
[349432277,1737177044943,-596.78,0.00019938,2]
[349432278,1737177044953,-760.59,0.00019938,2]
[349432279,1737177044963,-500.0,0.00019938,2]
[349432280,1737177044972,-500.0,0.00019938,2]
[349432281,1737177044981,-500.0,0.00019938,2]
[349432282,1737177044991,-994.79,0.00019938,2]
[349432283,1737177045000,-500.0,0.00019938,2]
[349432284,1737177045010,-500.0,0.00019938,2]
[349432285,1737177045020,-537.3,0.00019938,2]
[349432286,1737177045029,-1855.94,0.00019938,2]
[349432287,1737177045038,-500.0,0.00019938,2]
[349432288,1737177045048,-500.0,0.00019938,2]
[349432289,1737177045059,-500.0,0.00019938,2]
[349432290,1737177045069,-603.72,0.00019938,2]
[349432291,1737177045079,-500.0,0.00019938,2]
[349432292,1737177045088,-500.0,0.00019938,2]
[349432293,1737177045098,-500.0,0.00019938,2]
[349432294,1737177045108,-500.0,0.00019938,2]
[349432295,1737177045117,-500.0,0.00019938,2]
[349432296,1737177045127,-500.0,0.00019938,2]
[349432297,1737177045136,-500.0,0.00019938,2]
[349432298,1737177045146,-500.0,0.00019938,2]
[349432299,1737177045155,-500.0,0.00019938,2]
[349432300,1737177045165,-500.0,0.00019938,2]
[349432301,1737177045175,-1285.57,0.00019938,2]
[349432302,1737177045184,-500.0,0.00019938,2]
[349432303,1737177045194,-500.0,0.00019938,2]
[349432304,1737177045204,-576.28,0.00019938,2]
[349432305,1737177045213,-652.96,0.00019938,2]
[349432306,1737177045223,-844.97,0.00019938,2]
[349432307,1737177045233,-500.0,0.00019938,2]